Cogmind - Beta 16 --- EXPLORER MODE // 2025.12.12 @ 12:20:40 Player: K.K.Y. Result: Smashed by cave-in Performance ------------- Evolutions (0) 0 Regions Visited (2) 400 Robots Destroyed (34) 170 Value Destroyed (737) 737 Prototype IDs (12) 240 Alien Tech Used (0) 0 Bonus (0) 0 TOTAL SCORE: 1547 Bonus ------- None Cogmind --------- Core Integrity 0/250 Matter 153/300 Energy 100/100 System Corruption 4% Temperature Cool (0) Movement Flying (200) Ox2 Location -10/Subcaves Parts ------- > --- POWER (1) -------- (None) > --- PROPULSION (3) --- Flight Unit > --- UTILITY (2) ------ Machine Analyzer > --- WEAPON (2) ------- Subdweller Laser Subdweller Shrapnel Launcher > --- INVENTORY (5) ---- Subdweller Monowheel High-capacity Storage Unit Subdweller Optics Spread Laser Mining Laser Peak State ------------ > --- POWER ------------ Light Ion Engine > --- PROPULSION ------- Flight Unit Flight Unit Flight Unit > --- UTILITY ---------- Weight Redist. System Sensor Array > --- WEAPON ----------- Spread Laser Spread Laser > --- INVENTORY -------- Flight Unit Flight Unit High-capacity Storage Unit Spread Laser Mining Laser [Rating: 11] Favorites ----------- Power Light Ion Engine Engine Light Ion Engine Propulsion Flight Unit Wheel Wheel Flight Unit Flight Unit Utility Sensor Array Device Sensor Array Processor Machine Analyzer Weapon Spread Laser Energy Gun Spread Laser Ballistic Gun Subdweller Machine Gun Launcher Subdweller Shrapnel Launcher Special Weapon Mining Laser Build | -11 -10 -10 ------- Run | Yrd Mat Sub Slots Evolved 1 | . 1 . Power . | . . . Propulsion 1 | . 1 . Utility . | . . . Weapon . | . . . Parts Attached 31 | 5 10 16 Power 5 | . 1 4 Engine 5 | . 1 4 Core . | . . . Reactor . | . . . Propulsion 13 | 2 6 5 Treads . | . . . Leg . | . . . Wheel 2 | 2 . . Hover . | . . . Flight 11 | . 6 5 Utility 3 | 1 1 1 Device 2 | 1 1 . Storage . | . . . Processor 1 | . . 1 Hackware . | . . . Protection . | . . . Artifact . | . . . Weapon 10 | 2 2 6 Energy Gun 7 | 2 2 3 Energy Cannon . | . . . Ballistic Gun 1 | . . 1 Ballistic Cannon . | . . . Launcher 1 | . . 1 Special Weapon 1 | . . 1 Impact Weapon . | . . . Slashing Weapon . | . . . Piercing Weapon . | . . . Special Melee Weapon . | . . . Unidentified Prototypes . | . . . Parts Lost 9 | . 1 8 Power 2 | . . 2 Propulsion 4 | . 1 3 Utility 2 | . . 2 Weapon 1 | . . 1 Highest Loss Streak 4 | . 1 4 To Critical Strikes . | . . . Average Backups 4 | 1 3 4 Power . | . . . Propulsion 1 | . . 1 Utility 1 | . 1 1 Weapon 1 | . 1 1 Tool/Special . | . . . Unused Backups 5 | . 2 3 Power . | . . . Propulsion 1 | . . 1 Utility 3 | . 1 2 Weapon . | . . . Tool/Special 1 | . 1 . Average Slot Usage (%) 79 | . 74 80 Engine 10 | . 4 11 Wheel 1 | . 7 . Flight 30 | . 19 32 Device 7 | . 16 6 Processor 2 | . . 3 Energy Gun 18 | . 24 17 Launcher 1 | . . 1 Special Weapon 3 | . . 4 Peak Build Rating 11 | 5 11 11 Average Rating 8 | 2 6 8 On Entrance 5 | . 5 11 Avg Prop Armor Cover (%) 9 | . . 9 Naked Turns . | . . . Heaviest Build 17 | 3 10 17 Greatest Support 20 | 20 20 18 Greatest Overweight (x) 4 | . . 4 Average Overweight (x) . | . . . Largest Inventory Capacity 5 | 5 5 5 Average Capacity 5 | 5 5 5 Most Carried 5 | 5 5 5 Average Carried 4 | 2 3 4 Final Capacity 5 | 5 5 5 Final Carried 5 | 3 5 5 Class Distribution -------------------- 100% | Hacker-Mutant Dominant Class ---------------- Hacker-Mutant | -10/Materials Hacker-Mutant | -10/Subcaves Resources | -11 -10 -10 ----------- Run | Yrd Mat Sub Matter Collected 764 | 230 112 422 Remotely . | . . . Salvage Created 824 | 141 413 270 Parts 59 | 9 27 23 Haulers Intercepted 2 | . 2 . Recyclers Shooed . | . . . Parts Field Recycled . | . . . Retrieved Matter . | . . . Parts Self-Destructed . | . . . Prevented . | . . . Parts Restored . | . . . Kills | -11 -10 -10 ------- Run | Yrd Mat Sub Combat Hostiles Destroyed 23 | . 8 15 Guns 22 | . 7 15 Classes Destroyed 9 | 2 5 2 Builder 1 | . 1 . Tunneler 3 | 3 . . Hauler 2 | . 2 . Recycler 1 | 1 . . Turret 2 | . . 2 Watcher 2 | . 2 . Swarmer 10 | . 4 6 Grunt 4 | . 4 . Subdweller 9 | . . 9 Best Kill Streak 4 | 2 4 4 Combat Bots Only 4 | . 4 4 Max Kills in Single Turn 2 | 1 1 2 Gunslinging 1 | . . 1 Exploded . | . . . Melee . | . . . Uniques/NPCs Destroyed . | . . . Combat | -11 -10 -10 -------- Run | Yrd Mat Sub Hostile Shots Fired 164 | . 35 129 Missed 70 | . 17 53 Hits 94 | . 18 76 Projectile 94 | . 18 76 AOE 5 | . . 5 Critical Strikes 1 | . . 1 Damage Taken 878 | . 131 747 Core 256 | . 28 228 Absorbed by Shields . | . . . Ignored by Resistances 508 | . 82 426 Core Remaining (%) 100 | 100 . . Volleys Fired 223 | 6 36 181 Largest 2 | 2 2 2 Hottest 165 | 80 80 165 Shots Fired 369 | 12 72 285 Gun 277 | 12 72 193 Cannon . | . . . Launcher 7 | . . 7 Special 85 | . . 85 Kinetic 55 | . . 55 Thermal 314 | 12 72 230 Explosive . | . . . Electromagnetic . | . . . Robot Hit Streak 92 | 7 25 92 Robot Miss Streak 3 | 1 2 3 Penetration Max . | . . . Secondary Targets 1 | . . 1 Max Gunslinging Chain 1 | . . 1 Shots Hit Robots 126 | 11 58 57 Core Hits 109 | 5 21 83 Critical Kills . | . . . Critical Parts Destroyed . | . . . Critical Strikes . | . . . Melee Attacks . | . . . Impact . | . . . Slashing . | . . . Piercing . | . . . Sneak Attacks . | . . . Combat Hostiles . | . . . Follow-up Attacks . | . . . Damage Inflicted 1926 | 123 626 1177 Guns 1864 | 123 626 1115 Cannons . | . . . Explosions 62 | . . 62 Melee . | . . . Ramming . | . . . Kinetic 130 | . . 130 Thermal 1796 | 123 626 1047 Explosive . | . . . Electromagnetic . | . . . Impact . | . . . Slashing . | . . . Piercing . | . . . Highest Corruption 2 | . 2 2 Average Corruption 1 | . 1 2 Corruption Purged . | . . . Corruption Blocked . | . . . Effects 37 | . 2 35 Message Errors 8 | . 1 7 Matter Fused 11 | . . 11 Heat Flow Errors 4 | . 1 3 Energy Discharges 6 | . . 6 Data Loss (minor) 3 | . . 3 Data Loss (major) 1 | . . 1 Misfires 1 | . . 1 Alerts 2 | . . 2 Weapon Failures 1 | . . 1 Overload Shots . | . . . Overflow Damage . | . . . Projectiles . | . . . Explosions . | . . . Melee . | . . . Knockbacks . | . . . Impact . | . . . Kinetic . | . . . Secondary . | . . . Self-Inflicted Damage 15 | . . 15 Shots 1 | . . 1 Rammed . | . . . Targets Rammed . | . . . Kicked . | . . . Crushed . | . . . Highest Temperature 248 | 31 185 248 Average Temperature 44 | 7 49 45 Received Heat Transfer 405 | . 111 294 Effects 1 | . . 1 Energy Bleed 1 | . . 1 Siege Activations . | . . . Martial Activations . | . . . Shielding Activations . | . . . Robots Disrupted . | . . . Combat Hostiles . | . . . Robots Corrupted . | . . . Combat Hostiles . | . . . Parts Fried . | . . . Impact Corruptions . | . . . Robots Melted 1 | . 1 . Combat Hostiles 1 | . 1 . Parts Melted 6 | 2 2 2 Heat Transferred 3035 | 275 1450 1310 Parts Sabotaged . | . . . Parts Stolen . | . . . Parts Stripped . | . . . Power Chain Reactions . | . . . Alert | -11 -10 -10 ------- Run | Yrd Mat Sub Maximum Alert Level . | . . . Low Security (%) 100 | 100 100 . Level 1 . | . . . Level 2 . | . . . Level 3 . | . . . Level 4 . | . . . Level 5 . | . . . High Security . | . . . Max Security . | . . . Peak Influence 115 | 5 115 . Initial 2 | . 2 . Average 35 | 1 41 . Influence Increases 563 | 20 238 305 Destroy 0b10 Robot/C 320 | . 160 160 Destroy 0b10 Robot/NC 45 | 20 25 . Destroy Leader 48 | . 38 10 Lose Combat Pursuer 150 | . 15 135 Influence Decreases 563 | 15 243 305 Entered New Map 3 | . 3 . Time Decay 550 | 15 230 305 Lost Part 10 | . 10 . Squads Dispatched . | . . . Investigation . | . . . Extermination . | . . . Reinforcement . | . . . Assault . | . . . Garrison . | . . . Intercept . | . . . Searches Triggered . | . . . Construction Impeded . | . . . Haulers Reinforced . | . . . Active Scanning Responses . | . . . Cargo Convoy Interrupts . | . . . Stealth | -11 -10 -10 --------- Run | Yrd Mat Sub Distress Signals . | . . . Communications Jammed . | . . . Distress Signals . | . . . Times Spotted 38 | . 12 26 Peak Tracking Total 5 | . 2 5 Tactical Retreats 5 | . 1 4 Traps | -11 -10 -10 ------- Run | Yrd Mat Sub Traps Triggered 3 | . 3 . Indirectly . | . . . Trap Hack Attempts . | . . . Triggered . | . . . Disarmed . | . . . Reprogrammed . | . . . Reused . | . . . Traps Extracted . | . . . Installed . | . . . Triggered . | . . . Machines | -11 -10 -10 ---------- Run | Yrd Mat Sub Machines Disabled 1 | . . 1 Max in Single Turn 1 | . . 1 Machines Repaired . | . . . Machines Dismantled . | . . . Machines Sabotaged . | . . . Overloaded Fab Kills . | . . . Hacking | -11 -10 -10 --------- Run | Yrd Mat Sub Machines Accessed 1 | . . 1 Terminals . | . . . Fabricators . | . . . Repair Stations . | . . . Recycling Units . | . . . Scanalyzers . | . . . Garrison Access . | . . . Total Hacks 1 | . . 1 Successful 1 | . . 1 Failed . | . . . Catastrophic . | . . . Database Lockouts . | . . . Manual . | . . . Terminals . | . . . Fabricators . | . . . Repair Stations . | . . . Recycling Units . | . . . Scanalyzers . | . . . Garrison Access . | . . . Terminal Hacks 1 | . . 1 Proto ID Catalog 1 | . . 1 Fabricator Hacks . | . . . Repair Station Hacks . | . . . Recycling Unit Hacks . | . . . Scanalyzer . | . . . Garrison Access Hacks . | . . . Unauthorized Hacks . | . . . Terminals . | . . . Fabricators . | . . . Repair Stations . | . . . Recycling Units . | . . . Scanalyzers . | . . . Garrison Access . | . . . Data Cores Recovered . | . . . Used . | . . . Hacking Detections . | . . . Full Trace Events . | . . . Feedback Events . | . . . Feedback Blocked . | . . . Robot Schematics Acquired . | . . . Robots Built . | . . . Authchips . | . . . Time . | . . . Total Robot Build Rating . | . . . Part Schematics Acquired . | . . . Parts Built . | . . . Authchips . | . . . Time . | . . . Total Part Build Rating . | . . . Part Studies Acquired . | . . . Parts Repaired . | . . . Time . | . . . Parts Recycled . | . . . Recycled Matter . | . . . Retrieved Matter . | . . . Retrieved Components . | . . . Parts Scanalyzed . | . . . Part Schematics Acquired . | . . . Parts Damaged . | . . . Bothacking | -11 -10 -10 ------------ Run | Yrd Mat Sub Used RIF Installer . | . . . Robots Hacked . | . . . Non-combat . | . . . Combat . | . . . Robot Hacks Applied . | . . . Relay Couplers Released . | . . . Fabnet Peak Effective % . | . . . Robots Rewired . | . . . Allies Hacked . | . . . Hacks Repelled . | . . . Allies | -11 -10 -10 -------- Run | Yrd Mat Sub Total Allies . | . . . Largest Group . | . . . Highest-Rated Group . | . . . Highest-Rated Ally . | . . . Total Orders . | . . . Ally Attacks . | . . . Total Damage . | . . . Kills . | . . . Allies Corrupted . | . . . Allies Melted . | . . . Intel | -11 -10 -10 ------- Run | Yrd Mat Sub Active Infowar (turns) 2605 | 58 459 2088 Sensors 1735 | 58 459 1218 Machine Analysis 870 | . . 870 Robot Analysis Total . | . . . Derelict Logs Recovered 1 | . . 1 Drone Launches . | . . . Drone Recoveries . | . . . Exploration | -11 -10 -10 ------------- Run | Yrd Mat Sub Turns Passed 3631 | 76 459 3096 Spaces Moved 4113 | 58 710 3345 Core 220 | 54 . 166 Treads . | . . . Legs . | . . . Wheels 138 | 4 134 . Hover . | . . . Flight 3755 | . 576 3179 Fastest Speed 34 | 50 34 34 Average Speed 51 | 52 43 53 Slowest Speed 360 | 80 80 360 Overloaded Moves . | . . . Propulsion Burnouts . | . . . Robots Hopped 2 | . 2 . Potential Cave-ins 9 | . . 9 Cave-ins Triggered 1 | . . 1 Exploration Rate (%) 61 | 4 92 88 Regions Visited 2 Branch Regions 1 Pre-discovered Areas 1 | . . 1 Known Exits Taken 2 | 1 1 . Unknown Exits Taken . | . . . Scrap Searched 2 | . . 2 Spaces Dug 6 | . . 6 Terrain Destroyed 142 | . . 142 Melee . | . . . Projectile 6 | . . 6 AOE 136 | . . 136 Terrain Rammed . | . . . Walls Destroyed . | . . . Machines Disabled . | . . . Actions | -11 -10 -10 --------- Run | Yrd Mat Sub Total 5073 | 91 786 4196 Wait 655 | 15 13 627 Move 4107 | 57 705 3345 Hop 2 | . 2 . Pick Up 24 | 8 10 6 Fast Attach 5 | . 4 1 Attach 12 | 5 4 3 Detach 2 | . 2 . Swap 25 | . 2 23 Drop 18 | . 8 10 Fire 223 | 6 36 181 Melee . | . . . Ram . | . . . Kick . | . . . Crush . | . . . Escape Stasis . | . . . Rewire . | . . . Trap . | . . . Miscellaneous . | . . . Route ------- -11/Scrapyard -10/Materials (discovered 5 exits: *Mat x3 / *Min / *Sub) -10/Subcaves (discovered 3 exits: *Mat x2 / *Rec) History --------- Turn | Location | Event 6 | -11/Scrapyard | Identified exit to Materials 6 | -11/Scrapyard | Discovered exit to Materials (range 15) 77 | -11/Scrapyard | Entered Materials 77 | -10/Materials | Evolved 1 slot: Propulsion x1 222 | -10/Materials | Identified exit to Materials 222 | -10/Materials | Discovered exit to Materials (range 7) 300 | -10/Materials | Build established: Hacker-Mutant 377 | -10/Materials | Discovered exit to Materials (range 16) 409 | -10/Materials | Discovered exit to Materials (range 4) 458 | -10/Materials | Identified exit to Mines 458 | -10/Materials | Discovered exit to Mines (range 9) 534 | -10/Materials | Identified exit to Subcaves 534 | -10/Materials | Discovered exit to Subcaves (range 9) 536 | -10/Materials | Entered Subcaves 537 | -10/Subcaves | Approached by a straggling Scientist 567 | -10/Subcaves | Learned Materials garrison access intel 599 | -10/Subcaves | Identified exit to Recycling 599 | -10/Subcaves | Discovered exit to Recycling (range 10) 969 | -10/Subcaves | Identified exit to Materials 969 | -10/Subcaves | Discovered exit to Materials (range 6) 969 | -10/Subcaves | Ambushed by Subdweller buried in earth 1015 | -10/Subcaves | Lost 4 parts (1p1n1u1w) 1140 | -10/Subcaves | Visited 4L-MR0's lab 1350 | -10/Subcaves | Ambushed by Subdwellers from Twisted Machinery 1351 | -10/Subcaves | Core integrity fell below 50% 1532 | -10/Subcaves | Shifting Twisted Machinery released Sub. Optics 1533 | -10/Subcaves | Shifting Twisted Machinery released Mak. Kinetic Plating 1569 | -10/Subcaves | Shifting Twisted Machinery released Sub. Beam Cannon 1596 | -10/Subcaves | Shifting Twisted Machinery released Riot Gun 1680 | -10/Subcaves | A swath of the cavern ceiling suddenly collapsed 1725 | -10/Subcaves | Discovered exit to Materials (range 6) 1842 | -10/Subcaves | Shifting Twisted Machinery released Sub. Laser 1843 | -10/Subcaves | Shifting Twisted Machinery released Sub. Optics 2836 | -10/Subcaves | A swath of the cavern ceiling suddenly collapsed 2863 | -10/Subcaves | Learned location of Zion (-7) 2863 | -10/Subcaves | Met a Zionite searching for "candidates" 3029 | -10/Subcaves | Ambushed by Subdweller buried in earth 3031 | -10/Subcaves | Core integrity fell below 20% 3034 | -10/Subcaves | Ambushed by Subdweller buried in earth 3633 | -10/Subcaves | Crushed by falling debris 3633 | -10/Subcaves | Smashed by cave-in Last Messages --------------- 03252_ OZ-KB4(R): "NOSTUCKSUB!" 03254_ C4-Y9P(R): "ARGHSUB!" 03259_ C4-Y9P(R) destroyed. 03260_ Flight Unit destroyed. 03271_ OZ-KB4(R) destroyed. 03290_ Dropped Spread Laser. 03291_ Acquired 25 matter. 03338_ System corrupted: Energy discharge (-60). 03371_ Dropped Sub. Laser. 03407_ System corrupted: Matter fused (-10). 03422_ System corrupted: Matter fused (-9). 03513_ System corrupted: Energy discharge (-97). 03532_ Acquired 8 matter. 03587_ System corrupted: Component data lost. 03614_ System corrupted: IFF burst signal emitted. 03633_ The unstable cave ceiling collapses. 03633_ Crushed by falling debris. 03633_ Ion Engine destroyed. 03633_ System corrupted by crushing effect (+2). Map ----- +----------------------------------------------------+ | ?????# ##??????## ## ##??##??????????????? | | ????## ######?# # ### #??????????????? | | ????# ### #?## ## #??????????????? | | ????# #???# #### #??????????????? | | ???## ##?## ##?## ##?????????????? | | ??## ### #?## ## #?????????????? | | ?## # ## #### < ##? #?????????????? | | ?# ### ## ### #?????????????? | | ## ##### ##?????????????? | | " ##### #??????????????? | | # " #??# % ### #??????????????? | | ## "" #??# #?### & ##??????????????? | | ?### " #??# ####; # ##???????????????? | | ???#" "" ##?## ##; ;;##????????????????? | | ??## ###?## #; ;#?????????????????? | | ??# " ###### #; ;??????????????????? | | ??#"" #?# ### ##;; ! ;??????????????????? | | ??##" ### #### #? ; ;??????????????????? | | ??#" ## ### ## ## ; &;;??????????????????? | | ??#" " ## ##; #??????????????????? | | ??##"" " ## #;; ##?????????????????? | | ???## # #"#### ### ;; ##????????????????? | | ????#######?## ### #????????????????? | | ????????????# ###; #????????????????? | | ????????????# #### #????????????????? | | ????????????# ##; @ #?????????????????? | | ????????????## ; #?????????????????? | | ?????????????## & ;; #?????????????????? | | ??????????????# # ; ; #?????????????????? | | ?????????????## ####;;#####?????????????????? | | ?????????????# ##??####?????????????????????? | | ?????????????#####????????????????????????????? | | ??????????????????????????????????????????????? | | ??????????????????????????????????????????????? | | ??????????????????????????????????????????????? | | ??????????????????????????????????????????????? | | ??????????????????????????????????????????????? | | ??????????????????????????????????????????????? | | ??????????????????????????????????????????????? | | ??????????????????????????????????????????????? | | ??????????????????????????????????????????????? | | ??????????????????????????????????????????????? | | ??????????????????????????????????????????????? | | ??????????????????????????????????????????????? | | ??????????????????????????????????????????????? | | ??????????????????????????????????????????????? | | ??????????????????????????????????????????????? | | | | | | | +----------------------------------------------------+ Best States ------------- Heat Dissipation 25 Energy Generation 10 Energy Capacity 250 Matter Stores 300 Matter Capacity 300 Sight Range 16 Robot Scan Range 14 Terrain Scan Density 10 Additional Mass Support 6 Resistance: KI 35 Resistance: TH 35 Resistance: EX 35 Resistance: EM 35 Resistance: I 35 Resistance: S 35 Resistance: P 35 Evasion (%) 63 Offensive Hacking 20 Item Schematics ----------------- None Robot Schematics ------------------ None Fabricated ------------ Nothing Repaired ---------- Nothing Studied --------- None Alien Tech Used ----------------- None Achievements -------------- None Challenges ------------ None Game ------ Seed MassServoMallet Manual? 0 Play Time 00:27:00 Cumulative 194.0 hours Start 2025.12.12 @ 11:56:15 End 2025.12.12 @ 12:20:40 Sessions 1 Manual Loads 0 Difficulty Explorer Special Mode None Game No. 281 Rogue 0 Adventurer 0 Explorer 281 Win Type - Total 0 Types 0/0/0/0/0/0/0/0/0/0 Lore% 71 Gallery% 67 Achievement% 53 Wizard Run 0 Options --------- Layout 1 ASCII 0 Keyboard 0 Movement Mouse Keybinds 0 Fullscreen 1 Font 24/Smallcaps Map View 50x35 Zoom Use 0% Tactical HUD 1 Map Filters NONE Filters NONE Steam 1 RUN: 50069eb6-e2e9-4cf7-933d-dba24452b5f4